fUST/lending_fUST_20250227
["ID","MTS","AMOUNT","RATE_DAILY","PERIOD"]
[354678026,1740612662375,-500.0,0.0005041,120]
[354678027,1740612662384,-500.0,0.0005041,120]
[354678028,1740612662394,-500.0,0.0005041,120]
[354678029,1740612662405,-689.260793,0.0005041,120]
[354678030,1740612662415,-476.944486,0.0005041,30]
[354678031,1740612662424,-689.260793,0.0005041,120]
[354678032,1740612662433,-476.944486,0.0005041,30]
[354678033,1740612662442,-500.0,0.0005041,120]
[354678034,1740612662452,-500.0,0.0005041,120]
[354678035,1740612662461,-151.0,0.0005041,120]
[354678036,1740612662471,-846.39,0.0005041,120]
[354678037,1740612662480,-500.0,0.0005041,120]
[354678038,1740612662490,-564.78,0.0005041,120]
[354678039,1740612662499,-241.442179,0.0005041,120]
[354678040,1740612662509,-539.55,0.0005041,120]
[354678041,1740612662518,-241.442179,0.0005041,120]
[354678042,1740612662528,-500.0,0.0005041,120]
[354678043,1740612662537,-151.0,0.0005041,120]
[354678044,1740612662547,-285.995472,0.0005041,120]
[354678045,1740612662556,-151.0,0.0005041,120]
[354678046,1740612662566,-500.0,0.0005041,120]
[354678047,1740612662576,-1428.1,0.0005041,120]
[354678048,1740612662585,-500.0,0.0005041,120]
[354678049,1740612662595,-600.9,0.0005041,120]
[354678050,1740612662604,-500.0,0.0005041,120]
[354678051,1740612662613,-500.0,0.0005041,120]
[354678052,1740612662622,-500.0,0.0005041,120]
[354678053,1740612662631,-615.68,0.0005041,120]
[354678054,1740612662642,-802.71,0.0005041,120]
[354678055,1740612662654,-859.89,0.0005041,120]
[354678056,1740612662664,-500.0,0.0005041,120]
[354678057,1740612662674,-7716.64,0.0005041,120]
[354678058,1740612662684,-1087.51,0.0005041,120]
[354678059,1740612662700,-500.0,0.0005041,120]
[354678060,1740612662710,-11356.27,0.0005041,120]
[354678061,1740612662719,-8145.14,0.0005041,120]
[354678062,1740612662728,-500.0,0.0005041,120]
[354678063,1740612662738,-500.0,0.0005041,120]
[354678064,1740612662748,-2928.74,0.0005041,120]
[354678065,1740612662758,-1626.2,0.0005041,120]
[354678066,1740612662767,-982.75,0.0005041,120]
[354678067,1740612662779,-513.83,0.0005041,120]
[354678068,1740612662789,-500.0,0.0005041,120]
[354678069,1740612662799,-500.0,0.0005041,120]
[354678070,1740612662808,-802.07,0.0005041,120]
[354678071,1740612662818,-3574.17,0.0005041,120]
[354678072,1740612662827,-500.0,0.0005041,120]
[354678073,1740612662837,-1405.43,0.0005041,120]
[354678074,1740612662847,-511.36,0.0005041,30]
[354678075,1740612662856,-7025.95,0.0005041,120]
[354678076,1740612662867,-500.0,0.0005041,120]
[354678077,1740612662876,-200.96467453,0.0005041,120]
[354678078,1740612662885,-354.6232142,0.0005041,120]
[354678079,1740612662895,-732.33,0.0005041,120]
[354678080,1740612662906,-11606.25,0.0005041,3]
[354678081,1740612662916,-500.0,0.0005041,120]
[354678082,1740612662925,-253.599015,0.0005041,120]
[354678083,1740612662935,-253.599015,0.0005041,120]
[354678084,1740612662945,-522.21,0.0005041,120]
[354678085,1740612662955,-6098.04,0.0005041,120]
[354678086,1740612662965,-1769.31,0.0005041,120]
[354678087,1740612662974,-977.962218,0.0005041,120]
[354678088,1740612662984,-531.78,0.0005041,120]
[354678089,1740612662994,-5165.94,0.0005041,120]
[354678090,1740612663004,-977.962218,0.0005041,120]
[354678091,1740612663013,-1296.39,0.0005041,120]
[354678092,1740612663023,-500.0,0.0005041,120]
[354678093,1740612663033,-500.0,0.0005041,120]
[354678094,1740612663043,-745.32,0.0005041,120]
[354678095,1740612663053,-1319.72,0.0005041,120]
[354678096,1740612663063,-1434.05,0.0005041,120]
[354678097,1740612663073,-602.5,0.0005041,120]
[354678098,1740612663083,-901.96,0.0005041,120]
[354678099,1740612663092,-298.512815,0.0005041,120]
[354678100,1740612663102,-500.0,0.0005041,120]
[354678101,1740612663111,-11788.68,0.0005041,120]
[354678102,1740612663122,-298.512815,0.0005041,120]
[354678103,1740612663131,-3610.93,0.0005041,120]
[354678104,1740612663141,-506.91,0.0005041,120]
[354678105,1740612663152,-1267.92,0.0005041,120]
[354678106,1740612663162,-2222.15,0.0005041,120]
[354678107,1740612663173,-600.75,0.0005041,120]
[354678108,1740612663183,-500.0,0.0005041,120]
[354678109,1740612663192,-963.51,0.0005041,120]
[354678110,1740612663202,-1872.17,0.0005041,120]
[354678111,1740612663212,-7675.21,0.0005041,120]
[354678112,1740612663223,-3447.65,0.0005041,120]
[354678113,1740612663232,-500.0,0.0005041,120]
[354678114,1740612663243,-714.42,0.0005041,120]
[354678115,1740612663252,-500.0,0.0005041,120]
[354678116,1740612663263,-524.28685445,0.0005041,120]
[354678117,1740612663272,-1518.89,0.0005041,120]
[354678118,1740612663283,-828.63,0.0005041,120]
[354678119,1740612663293,-500.0,0.0005041,120]
[354678120,1740612663303,-500.0,0.0005041,120]
[354678121,1740612663313,-874.37,0.0005041,120]
[354678122,1740612663323,-16446.27,0.0005041,120]
[354678123,1740612663333,-987.91,0.0005041,120]
[354678124,1740612663343,-544.41,0.0005041,120]
[354678125,1740612663354,-500.0,0.0005041,120]
[354678126,1740612663364,-1207.51,0.00050416,120]
[354678127,1740612663374,-818.25,0.00050416,120]
[354678128,1740612663384,-582.64,0.00050416,120]
[354678129,1740612663394,-565.06,0.00050416,120]
[354678130,1740612663406,-797.5,0.00050416,120]
[354678131,1740612663416,-699.41,0.00050416,120]
[354678132,1740612663426,-2789.44,0.00050416,120]
[354678133,1740612663436,-650.93,0.00050416,120]
[354678134,1740612663446,-910.21,0.00050416,120]
[354678135,1740612663456,-3161.02,0.00050416,120]
[354678136,1740612663466,-500.0,0.00050416,120]
[354678137,1740612663476,-725.05,0.00050416,120]
[354678138,1740612663485,-500.0,0.00050416,120]
[354678139,1740612663601,-3123.49,0.00050416,120]
[354678140,1740612663612,-1532.22,0.00050416,120]
[354678141,1740612663621,-696.04,0.00050416,120]
[354678142,1740612663631,-775.5,0.00050416,120]
[354678143,1740612663642,-1560.0,0.00050416,120]
[354678144,1740612663652,-554.15,0.00050416,120]
[354678145,1740612663661,-508.29,0.00050416,120]
[354678146,1740612663672,-636.3,0.00050416,120]
[354678147,1740612663682,-1875.09,0.00050416,120]
[354678148,1740612663692,-506.26,0.00050416,120]
[354678149,1740612663704,-727.01,0.00050416,120]
[354678150,1740612663714,-738.9,0.00050416,120]
[354678151,1740612663724,-500.0,0.00050416,120]
[354678152,1740612663735,-500.0,0.00050416,120]
[354678153,1740612663744,-500.0,0.00050416,120]
[354678154,1740612663754,-500.0,0.00050416,15]
[354678155,1740612663765,-500.0,0.00050416,120]
[354678156,1740612663777,-2768.85,0.00050416,120]
[354678157,1740612663787,-937.23,0.00050416,120]
[354678158,1740612663796,-786.35,0.00050416,120]
[354678159,1740612663806,-385.543995,0.00050416,120]
[354678160,1740612663816,-385.543995,0.00050416,120]
[354678161,1740612663826,-151.0,0.00050416,120]
[354678162,1740612663836,-382.945595,0.00050416,120]
[354678163,1740612663846,-382.945595,0.00050416,120]
[354678164,1740612663855,-4810.94887019,0.00050431,30]
[354678165,1740612663865,-800.0,0.00050438,30]
[354678166,1740612663875,-540.54,0.0005044,120]
[354678167,1740612663886,-717.99,0.0005044,120]
[354678168,1740612663896,-913.57,0.0005044,120]
[354678169,1740612663907,-500.0,0.0005044,120]
[354678170,1740612663917,-1771.38,0.0005044,120]
[354678171,1740612663927,-500.0,0.0005044,120]
[354678172,1740612663938,-1070.59,0.0005044,120]
[354678173,1740612663949,-500.0,0.0005044,120]
[354678174,1740612663959,-2028.34,0.0005044,120]
[354678175,1740612663969,-724.64,0.0005044,120]
[354678176,1740612663979,-500.0,0.0005044,120]
[354678177,1740612663989,-1677.07,0.0005044,120]
[354678178,1740612663999,-700.65,0.0005044,120]
[354678179,1740612664010,-1712.4,0.0005044,120]
[354678180,1740612664019,-2539.69,0.0005044,120]
[354678181,1740612664028,-712.64,0.0005044,120]
[354678182,1740612664038,-500.0,0.0005044,120]
[354678183,1740612664048,-500.0,0.0005044,120]
[354678184,1740612664058,-810.43,0.0005044,120]
[354678185,1740612664067,-3307.1,0.0005044,120]
[354678186,1740612664077,-500.0,0.0005044,120]
[354678187,1740612664087,-500.0,0.0005044,120]
[354678188,1740612664096,-618.09,0.0005044,120]
[354678189,1740612664105,-151.0,0.0005044,120]
[354678190,1740612664114,-882.96,0.0005044,120]
[354678191,1740612664124,-1050.94,0.0005044,120]
[354678192,1740612664133,-500.0,0.0005044,120]
[354678193,1740612664144,-500.0,0.0005044,120]
[354678194,1740612664155,-625.66,0.0005044,120]
[354678195,1740612664164,-1339.38,0.0005044,120]
[354678196,1740612664173,-778.41,0.0005044,120]
[354678197,1740612664183,-500.0,0.0005044,120]
[354678198,1740612664193,-500.0,0.0005044,120]
[354678199,1740612664203,-500.0,0.0005044,120]
[354678200,1740612664212,-536.72,0.0005044,120]
[354678201,1740612664222,-500.0,0.0005044,120]
[354678202,1740612664232,-188.85083236,0.0005044,120]
[354678203,1740612664242,-500.0,0.0005044,120]
[354678204,1740612664251,-500.0,0.0005044,120]
[354678205,1740612664262,-500.0,0.00050442,31]
[354678206,1740612664272,-500.0,0.00050442,120]
[354678207,1740612664281,-500.0,0.00050442,120]
[354678208,1740612664291,-611.27,0.00050442,120]
[354678209,1740612664301,-322.736773,0.00050442,120]
[354678210,1740612664311,-322.736773,0.00050442,120]
[354678211,1740612664321,-254.826343,0.00050442,120]
[354678212,1740612664332,-254.826343,0.00050442,120]
[354678213,1740612664343,-150.0,0.00050473,10]
[354678214,1740612664353,-800.0,0.00050478,30]
[354678215,1740612664363,-800.0,0.00050523,30]
[354678216,1740612664374,-2778.45,0.00050683,120]
[354678217,1740612664383,-500.0,0.00050683,120]
[354678218,1740612664393,-500.0,0.00050683,120]
[354678219,1740612664403,-861.01,0.00050683,120]
[354678220,1740612664412,-659.09,0.00050683,120]
[354678221,1740612664423,-1687.34,0.00050683,120]
[354678222,1740612664433,-1507.91,0.00050683,120]
[354678223,1740612664442,-795.66,0.00050683,120]
[354678224,1740612664452,-1484.64,0.00050683,120]
[354678225,1740612664462,-896.66,0.00050683,120]
[354678226,1740612664471,-1237.88,0.00050683,120]
[354678227,1740612664481,-1998.85,0.00050683,120]
[354678228,1740612664491,-500.0,0.00050683,120]
[354678229,1740612664500,-1476.84,0.00050683,120]
[354678230,1740612664510,-500.0,0.00050683,120]
[354678231,1740612664519,-842.28,0.00050683,120]
[354678232,1740612664529,-1327.97,0.00050683,120]
[354678233,1740612664538,-978.17,0.00050683,120]
[354678234,1740612664548,-35665.21,0.00050683,120]
[354678235,1740612664557,-500.0,0.00050683,120]
[354678236,1740612664567,-1674.6,0.00050683,120]
[354678237,1740612664577,-3374.64,0.00050683,120]
[354678238,1740612664586,-3689.39,0.00050683,120]
[354678239,1740612664595,-999.91,0.00050683,120]
[354678240,1740612664605,-1654.58,0.00050683,120]
[354678241,1740612664615,-8800.67,0.00050683,120]
[354678242,1740612664624,-572.35,0.00050683,120]
[354678243,1740612664634,-2141.75,0.00050683,120]
[354678244,1740612664645,-500.0,0.00050683,120]
[354678245,1740612664658,-15272.81,0.00050683,120]
[354678246,1740612664668,-500.0,0.00050683,120]
[354678247,1740612664678,-1712.31,0.00050683,120]
[354678248,1740612664688,-1889.46,0.00050683,120]
[354678249,1740612664699,-112701.3,0.00050683,7]
[354678250,1740612664709,-500.0,0.00050683,120]
[354678251,1740612664719,-1846.65,0.00050683,120]
[354678252,1740612664729,-1230.19,0.00050683,120]
[354678253,1740612664739,-508.34819184,0.00050683,120]
[354678254,1740612664749,-513.49,0.00050683,120]
[354678255,1740612664759,-500.0,0.00050683,120]
[354678256,1740612664768,-562.96,0.00050683,120]
[354678257,1740612664780,-500.0,0.00050683,120]
[354678258,1740612664789,-500.0,0.00050683,120]
[354678259,1740612664799,-500.0,0.00050683,120]
[354678260,1740612664809,-151.0,0.00050684,120]
[354678261,1740612664818,-500.0,0.00050684,30]
[354678262,1740612664827,-500.0,0.00050684,30]
[354678263,1740612664837,-500.0,0.00050684,30]
[354678264,1740612664846,-500.0,0.00050684,30]
[354678265,1740612664856,-500.0,0.00050684,30]
[354678266,1740612664865,-500.0,0.00050684,30]
[354678267,1740612664875,-500.0,0.00050684,30]
[354678268,1740612664885,-500.0,0.00050684,30]
[354678269,1740612664894,-500.0,0.00050684,30]
[354678270,1740612664905,-500.0,0.00050684,30]
[354678271,1740612664914,-500.0,0.00050684,30]
[354678272,1740612664924,-500.0,0.00050684,30]
[354678273,1740612664933,-500.0,0.00050684,30]
[354678274,1740612664942,-500.0,0.00050684,30]
[354678275,1740612664952,-500.0,0.00050684,30]
[354678276,1740612664961,-500.0,0.00050684,30]
[354678277,1740612664971,-500.0,0.00050684,30]
[354678278,1740612664980,-500.0,0.00050684,30]
[354678279,1740612664990,-500.0,0.00050684,30]
[354678280,1740612664999,-500.0,0.00050684,30]
[354678281,1740612665008,-500.0,0.00050684,30]
[354678282,1740612665017,-500.0,0.00050684,30]
[354678283,1740612665026,-500.0,0.00050684,30]
[354678284,1740612665036,-426.959391,0.00050684,30]
[354678285,1740612665045,-500.0,0.00050684,120]
[354678286,1740612665054,-500.0,0.00050684,120]
[354678287,1740612665063,-500.0,0.00050684,120]
[354678288,1740612665072,-663.11,0.00050684,120]
[354678289,1740612665081,-690.9,0.00050684,120]
[354678290,1740612665090,-500.0,0.00050684,120]
[354678291,1740612665099,-500.0,0.00050684,120]
[354678292,1740612665109,-500.0,0.00050684,120]
[354678293,1740612665118,-541.34,0.00050684,120]
[354678294,1740612665127,-545.66,0.00050684,120]
[354678295,1740612665136,-512.64298047,0.00050684,120]
[354678296,1740612665146,-683.01,0.00050684,120]
[354678297,1740612665157,-500.0,0.00050684,120]
[354678298,1740612665166,-500.0,0.00050684,120]
[354678299,1740612665175,-500.0,0.00050684,120]
[354678300,1740612665184,-880.49,0.00050684,120]
[354678301,1740612665194,-500.0,0.00050684,120]
[354678302,1740612665203,-500.0,0.00050684,120]
[354678303,1740612665212,-500.0,0.00050684,120]
[354678304,1740612665221,-500.0,0.00050684,120]
[354678305,1740612665232,-500.0,0.00050684,120]
[354678306,1740612665242,-500.0,0.00050684,120]
[354678307,1740612665251,-500.0,0.00050684,120]
[354678308,1740612665260,-500.0,0.00050684,120]
[354678309,1740612665269,-500.0,0.00050684,120]
[354678310,1740612665278,-346.79,0.00050684,7]
[354678311,1740612665382,-500.0,0.00050684,120]
[354678312,1740612665393,-434.79642,0.00050684,120]
[354678313,1740612665404,-1645.83,0.00050684,120]
[354678314,1740612665412,-958.64,0.00050684,120]
[354678315,1740612665421,-500.0,0.00050684,120]
[354678316,1740612665431,-162.034499,0.00050684,120]
[354678317,1740612665440,-162.034499,0.00050684,120]
[354678318,1740612665449,-759.37,0.00050684,120]
[354678319,1740612665458,-500.0,0.00050684,120]
[354678320,1740612665467,-151.0,0.00050684,120]
[354678321,1740612665476,-500.0,0.00050684,120]
[354678322,1740612665485,-810.724101,0.00050684,120]
[354678323,1740612665494,-500.0,0.00050684,120]
[354678324,1740612665503,-810.724101,0.00050684,120]
[354678325,1740612665512,-151.0,0.00050684,120]
[354678326,1740612665521,-500.0,0.00050684,120]
[354678327,1740612665531,-500.0,0.00050684,120]
[354678328,1740612665540,-1087.06,0.00050684,120]
[354678329,1740612665549,-151.0,0.00050684,120]
[354678330,1740612665558,-1536.490674,0.00050684,120]
[354678331,1740612665567,-743.94,0.00050684,120]
[354678332,1740612665576,-899.12,0.00050684,120]
[354678333,1740612665586,-168.258599,0.00050684,120]
[354678334,1740612665595,-168.258599,0.00050684,120]
[354678335,1740612665604,-151.0,0.00050684,120]
[354678336,1740612665613,-1139.33,0.00050684,120]
[354678337,1740612665623,-151.0,0.00050684,120]
[354678338,1740612665632,-969.63,0.00050684,120]
[354678339,1740612665642,-1562.95,0.00050684,120]
[354678340,1740612665651,-649.28,0.00050684,120]
[354678341,1740612665661,-500.0,0.00050684,120]
[354678342,1740612665671,-500.0,0.00050684,120]
[354678343,1740612665680,-500.0,0.00050684,120]
[354678344,1740612665691,-683.51,0.00050684,120]
[354678345,1740612665703,-2036.394798,0.00050684,120]
[354678346,1740612665713,-2036.394798,0.00050684,120]
[354678347,1740612665722,-500.0,0.00050684,120]
[354678348,1740612665732,-500.0,0.00050684,120]
[354678349,1740612665742,-618.32,0.00050684,120]
[354678350,1740612665751,-702.29,0.00050684,120]
[354678351,1740612665761,-413.365869,0.00050684,110]
[354678352,1740612665772,-413.365869,0.00050684,110]
[354678353,1740612665782,-500.0,0.00050684,120]
[354678354,1740612665791,-151.0,0.00050684,120]
[354678355,1740612665800,-500.0,0.00050684,120]
[354678356,1740612665809,-500.0,0.00050684,120]
[354678357,1740612665819,-151.0,0.00050684,120]
[354678358,1740612665828,-623.05,0.00050684,120]
[354678359,1740612665837,-812.36,0.00050684,120]
[354678360,1740612665847,-151.0,0.00050684,120]
[354678361,1740612665857,-500.0,0.00050684,120]
[354678362,1740612665866,-500.0,0.00050684,120]
[354678363,1740612665876,-977.8,0.00050684,120]
[354678364,1740612665885,-500.0,0.00050684,120]
[354678365,1740612665895,-500.0,0.00050684,120]
[354678366,1740612665907,-500.0,0.00050684,120]
[354678367,1740612665916,-689.260793,0.00050684,120]
[354678368,1740612665926,-476.944486,0.00050684,30]
[354678369,1740612665935,-689.260793,0.00050684,120]
[354678370,1740612665945,-476.944486,0.00050684,30]
[354678371,1740612665954,-500.0,0.00050684,120]
[354678372,1740612665963,-500.0,0.00050684,120]
[354678373,1740612665973,-151.0,0.00050684,120]
[354678374,1740612665983,-846.39,0.00050684,120]
[354678375,1740612665992,-500.0,0.00050684,120]
[354678376,1740612666001,-564.78,0.00050684,120]
[354678377,1740612666011,-241.442179,0.00050684,120]
[354678378,1740612666020,-539.55,0.00050684,120]
[354678379,1740612666030,-241.442179,0.00050684,120]
[354678380,1740612666039,-500.0,0.00050684,120]
[354678381,1740612666048,-151.0,0.00050684,120]
[354678382,1740612666058,-160.024012,0.00050684,120]
[354678383,1740612666067,-500.0,0.00050684,120]
[354678384,1740612666077,-1428.1,0.00050684,120]
[354678385,1740612666086,-500.0,0.00050684,120]
[354678386,1740612666096,-600.9,0.00050684,120]
[354678387,1740612666105,-500.0,0.00050684,120]
[354678388,1740612666114,-240.29469324,0.00050684,120]
[354678389,1740612666124,-500.0,0.00050684,120]
[354678390,1740612666133,-615.68,0.00050684,120]
[354678391,1740612666143,-802.71,0.00050684,120]
[354678392,1740612666153,-859.89,0.00050684,120]
[354678393,1740612666163,-500.0,0.00050684,120]
[354678394,1740612666172,-7716.64,0.00050684,120]
[354678395,1740612666182,-1087.51,0.00050684,120]
[354678396,1740612666191,-500.0,0.00050684,120]
[354678397,1740612666201,-11356.27,0.00050684,120]
[354678398,1740612666210,-8145.14,0.00050684,120]
[354678399,1740612666219,-500.0,0.00050684,120]
[354678400,1740612666229,-500.0,0.00050684,120]
[354678401,1740612666239,-2928.74,0.00050684,120]
[354678402,1740612666248,-1626.2,0.00050684,120]
[354678403,1740612666257,-982.75,0.00050684,120]
[354678404,1740612666267,-513.83,0.00050684,120]
[354678405,1740612666276,-500.0,0.00050684,120]
[354678406,1740612666286,-500.0,0.00050684,120]
[354678407,1740612666295,-802.07,0.00050684,120]
[354678408,1740612666305,-3574.17,0.00050684,120]
[354678409,1740612666314,-500.0,0.00050684,120]
[354678410,1740612666324,-1405.43,0.00050684,120]
[354678411,1740612666333,-511.36,0.00050684,30]
[354678412,1740612666343,-7025.95,0.00050684,120]
[354678413,1740612666352,-500.0,0.00050684,120]
[354678414,1740612666362,-732.33,0.00050684,120]
[354678415,1740612666371,-11606.25,0.00050684,3]
[354678416,1740612666380,-500.0,0.00050684,120]
[354678417,1740612666390,-253.599015,0.00050684,120]
[354678418,1740612666401,-253.599015,0.00050684,120]
[354678419,1740612666411,-522.21,0.00050684,120]
[354678420,1740612666420,-6098.04,0.00050684,120]
[354678421,1740612666430,-1769.31,0.00050684,120]
[354678422,1740612666439,-977.962218,0.00050684,120]
[354678423,1740612666447,-531.78,0.00050684,120]
[354678424,1740612666457,-5165.94,0.00050684,120]
[354678425,1740612666467,-977.962218,0.00050684,120]
[354678426,1740612666476,-1296.39,0.00050684,120]
[354678427,1740612666486,-500.0,0.00050684,120]
[354678428,1740612666496,-745.32,0.00050684,120]
[354678429,1740612666505,-1319.72,0.00050684,120]
[354678430,1740612666515,-1434.05,0.00050684,120]
[354678431,1740612666524,-602.5,0.00050684,120]
[354678432,1740612666534,-901.96,0.00050684,120]
[354678433,1740612666543,-298.512815,0.00050684,120]
[354678434,1740612666552,-500.0,0.00050684,120]
[354678435,1740612666561,-11788.68,0.00050684,120]
[354678436,1740612666571,-298.512815,0.00050684,120]
[354678437,1740612666579,-3610.93,0.00050684,120]
[354678438,1740612666589,-506.91,0.00050684,120]
[354678439,1740612666598,-1267.92,0.00050684,120]
[354678440,1740612666607,-2222.15,0.00050684,120]
[354678441,1740612666616,-600.75,0.00050684,120]
[354678442,1740612666625,-500.0,0.00050684,120]
[354678443,1740612666635,-385.543995,0.00050684,120]
[354678444,1740612666645,-385.543995,0.00050684,120]
[354678445,1740612666654,-963.51,0.00050684,120]
[354678446,1740612666663,-1872.17,0.00050684,120]
[354678447,1740612666673,-7675.21,0.00050684,120]
[354678448,1740612666682,-159.911144,0.00050684,120]
[354678449,1740612666693,-3447.65,0.00050684,120]
[354678450,1740612666705,-500.0,0.00050684,120]
[354678451,1740612666715,-714.42,0.00050684,120]
[354678452,1740612666724,-500.0,0.00050684,120]
[354678453,1740612666734,-382.945595,0.00050684,120]
[354678454,1740612666743,-382.945595,0.00050684,120]
[354678455,1740612666753,-1518.89,0.00050684,120]
[354678456,1740612666762,-828.63,0.00050684,120]
[354678457,1740612666772,-500.0,0.00050684,120]
[354678458,1740612666781,-500.0,0.00050684,120]
[354678459,1740612666790,-874.37,0.00050684,120]
[354678460,1740612666799,-16446.27,0.00050684,120]
[354678461,1740612666808,-987.91,0.00050684,120]
[354678462,1740612666817,-544.41,0.00050684,120]
[354678463,1740612666827,-500.0,0.00050684,120]
[354678464,1740612666836,-1207.51,0.0005069,120]
[354678465,1740612666845,-818.25,0.0005069,120]
[354678466,1740612666854,-582.64,0.0005069,120]
[354678467,1740612666865,-565.06,0.0005069,120]
[354678468,1740612666874,-797.5,0.0005069,120]
[354678469,1740612666885,-699.41,0.0005069,120]
[354678470,1740612666988,-2789.44,0.0005069,120]
[354678471,1740612666997,-650.93,0.0005069,120]
[354678472,1740612667006,-910.21,0.0005069,120]
[354678473,1740612667015,-3161.02,0.0005069,120]
[354678474,1740612667024,-500.0,0.0005069,120]
[354678475,1740612667033,-725.05,0.0005069,120]
[354678476,1740612667043,-500.0,0.0005069,120]
[354678477,1740612667052,-3123.49,0.0005069,120]
[354678478,1740612667062,-1532.22,0.0005069,120]
[354678479,1740612667071,-696.04,0.0005069,120]
[354678480,1740612667080,-775.5,0.0005069,120]
[354678481,1740612667090,-1560.0,0.0005069,120]
[354678482,1740612667099,-554.15,0.0005069,120]
[354678483,1740612667109,-508.29,0.0005069,120]
[354678484,1740612667118,-636.3,0.0005069,120]
[354678485,1740612667129,-1875.09,0.0005069,120]
[354678486,1740612667138,-506.26,0.0005069,120]
[354678487,1740612667147,-727.01,0.0005069,120]
[354678488,1740612667157,-738.9,0.0005069,120]
[354678489,1740612667167,-500.0,0.0005069,120]
[354678490,1740612667176,-322.736773,0.0005069,120]
[354678491,1740612667185,-500.0,0.0005069,120]
[354678492,1740612667194,-322.736773,0.0005069,120]
[354678493,1740612667204,-500.0,0.0005069,15]
[354678494,1740612667213,-254.826343,0.0005069,120]
[354678495,1740612667223,-500.0,0.0005069,120]
[354678496,1740612667232,-254.826343,0.0005069,120]
[354678497,1740612667242,-2768.85,0.0005069,120]
[354678498,1740612667253,-937.23,0.0005069,120]
[354678499,1740612667264,-786.35,0.0005069,120]
[354678500,1740612667273,-151.0,0.0005069,120]
[354678501,1740612667285,-800.0,0.0005069,30]
[354678502,1740612667295,-6098.21,0.000507,30]
[354678503,1740612667304,-540.54,0.00050714,120]
[354678504,1740612667315,-717.99,0.00050714,120]
[354678505,1740612667327,-913.57,0.00050714,120]
[354678506,1740612667336,-500.0,0.00050714,120]
[354678507,1740612667346,-1771.38,0.00050714,120]
[354678508,1740612667356,-500.0,0.00050714,120]
[354678509,1740612667366,-1070.59,0.00050714,120]
[354678510,1740612667375,-500.0,0.00050714,120]
[354678511,1740612667386,-2028.34,0.00050714,120]
[354678512,1740612667396,-724.64,0.00050714,120]
[354678513,1740612667406,-500.0,0.00050714,120]
[354678514,1740612667415,-1677.07,0.00050714,120]
[354678515,1740612667424,-700.65,0.00050714,120]
[354678516,1740612667434,-1712.4,0.00050714,120]
[354678517,1740612667443,-2539.69,0.00050714,120]
[354678518,1740612667453,-712.64,0.00050714,120]
[354678519,1740612667463,-500.0,0.00050714,120]
[354678520,1740612667472,-500.0,0.00050714,120]
[354678521,1740612667482,-810.43,0.00050714,120]
[354678522,1740612667491,-3307.1,0.00050714,120]
[354678523,1740612667501,-437.35152032,0.00050714,120]
[354678524,1740612667510,-500.0,0.00050714,120]
[354678525,1740612667519,-618.09,0.00050714,120]